Workbook

Sheet 2025年4月
A1: 陆 丰 市 2025 年 4 月 财 政 预 算 收 入 完 成 情 况 表
A2: 2025-04-30 | L2: 单位：万元
B3: 年 度 | C3: 累 计 | D3: 占 年 | E3: 上 年 | F3: 比上年 | G3: 比上年 | H3: 本 月 | I3: 上 年 | J3: 比上年 | K3: 比上年
A4: 收 入 项 目 | B4: 预 算 | C4: 完 成 | D4: 预 算 | E4: 同 期 | F4: 同期增 | G4: 同期增 | H4: 完 成 | I4: 同 月 | J4: 同月增 | K4: 同月增 | L4: 备 注
B5: 数 | C5: 数 | D5: % | E5: 完 成 | F5: 减额 | G5: (减)% | H5: 数 | I5: 完 成 | J5: 减额 | K5: (减)%
A6: （一）税收收入 | B6: =SUM(B7:B20) -> 58,000 | C6: =SUM(C7:C20) -> 20,541 | D6: =C6/B6*100 -> 35.4 | E6: =SUM(E7:E20) -> 17,746 | F6: =C6-E6 -> 2,795 | G6: =IF(E6=0,"",F6/E6*100) -> 15.8 | H6: =H7+H8+H9+H10+H11+H12+H13+H14+H15+H16+H17+H18+H19+H20 -> 5,099 | I6: =SUM(I7:I20) -> 4,270 | J6: =H6-I6 -> 829 | K6: =J6/I6*100 -> 19.4
A7: 1、增值税 | B7: 15,480 | C7: 5,844 | E7: 5,313 | F7: 531 | G7: 10.0 | H7: =+C7-'[1]2025年3月'!C7 -> 1,430.00 | I7: =+E7-'[1]2025年3月'!E7 -> 1,134 | J7: 296 | K7: =IF(I7=0,"",J7/I7*100) -> 26.1
A8: 2、企业所得税 | B8: 7,110 | C8: 4,328 | E8: 2,561 | F8: 1,767 | G8: 69.0 | H8: =+C8-'[1]2025年3月'!C8 -> 2,144.00 | I8: =+E8-'[1]2025年3月'!E8 -> 1,326 | J8: 818 | K8: 61.7
A9: 3、个人所得税 | B9: 1,360 | C9: 407 | E9: 389 | F9: 18 | G9: 4.6 | H9: =+C9-'[1]2025年3月'!C9 -> -10.00 | I9: =+E9-'[1]2025年3月'!E9 -> 31 | J9: -41 | K9: -132.3
A10: 4、资源税 | B10: 80 | C10: 7 | E10: 46 | F10: -39 | G10: -84.8 | H10: =+C10-'[1]2025年3月'!C10 -> 2.00 | I10: =+E10-'[1]2025年3月'!E10 -> 15 | J10: -13 | K10: -86.7
A11: 5、城市维护建设税 | B11: 5,680 | C11: 1,933 | E11: 1,742 | F11: 191 | G11: 11.0 | H11: =+C11-'[1]2025年3月'!C11 -> 477.00 | I11: =+E11-'[1]2025年3月'!E11 -> 420 | J11: 57 | K11: 13.6
A12: 6、房产税 | B12: 4,530 | C12: 170 | E12: 474 | F12: -304 | G12: -64.1 | H12: =+C12-'[1]2025年3月'!C12 -> 30.00 | I12: =+E12-'[1]2025年3月'!E12 -> 150 | J12: -120 | K12: -80.0
A13: 7、印花税 | B13: 1,810 | C13: 737 | E13: 584 | F13: 153 | G13: 26.2 | H13: =+C13-'[1]2025年3月'!C13 -> 113.00 | I13: =+E13-'[1]2025年3月'!E13 -> 153 | J13: -40 | K13: -26.1
A14: 8、城镇土地使用税 | B14: 2,140 | C14: 140 | E14: 237 | F14: -97 | G14: -40.9 | H14: =+C14-'[1]2025年3月'!C14 -> 20.00 | I14: =+E14-'[1]2025年3月'!E14 -> 40 | J14: -20 | K14: -50.0
A15: 9、土地增值税 | B15: 4,840 | C15: 1,862 | E15: 1,791 | F15: 71 | G15: 4.0 | H15: =+C15-'[1]2025年3月'!C15 -> 249.00 | I15: =+E15-'[1]2025年3月'!E15 -> 181 | J15: 68 | K15: 37.6
A16: 10、车船使用税 | B16: 2,080 | C16: 669 | E16: 686 | F16: -17 | G16: -2.5 | H16: =+C16-'[1]2025年3月'!C16 -> 159.00 | I16: =+E16-'[1]2025年3月'!E16 -> 169 | J16: -10 | K16: -5.9
A17: 11、环保税 | B17: 300 | C17: 81 | E17: 161 | F17: -80 | G17: -49.7 | H17: =+C17-'[1]2025年3月'!C17 -> 42.00 | I17: =+E17-'[1]2025年3月'!E17 -> 56 | J17: -14 | K17: -25.0
A18: 12、耕地占用税 | B18: 6,000 | C18: 2,794 | E18: 2,105 | F18: 689 | G18: 32.7 | H18: =+C18-'[1]2025年3月'!C18 -> 4.00 | I18: =+E18-'[1]2025年3月'!E18 -> 83 | J18: -79 | K18: -95.2
A19: 13、契 税 | B19: 6,590 | C19: 1,569 | E19: 1,657 | F19: -88 | G19: -5.3 | H19: =+C19-'[1]2025年3月'!C19 -> 439.00 | I19: =+E19-'[1]2025年3月'!E19 -> 512 | J19: -73 | K19: -14.3
A20: 14、其他税收收入 | B20: 0 | C20: 0 | E20: 0 | F20: 0 | H20: =+C20-'[1]2025年3月'!C20 -> 0 | I20: =+E20-'[1]2025年3月'!E20 -> 0 | J20: 0
A21: （二）非税收入 | B21: =SUM(B22:B29) -> 95,495 | C21: =SUM(C22:C29) -> 26,967 | D21: =C21/B21*100 -> 28.2 | E21: =E22+E23+E24+E25+E26+E27+E28+E29 -> 28,563 | F21: -1,596 | G21: =F21/E21*100 -> -5.6 | H21: 2,466 | I21: 3,357 | J21: -891 | K21: -26.5
A22: 1、专项收入 | B22: 3,990 | C22: 2,132 | E22: 1,162 | F22: 970 | G22: =IF(E22=0,"",F22/E22*100) -> 83.5 | H22: =+C22-'[1]2025年3月'!C22 -> 352 | I22: =+E22-'[1]2025年3月'!E22 -> 266 | J22: 86 | K22: 32.3
A23: 2、行政事业性收费收入 | B23: 10,860 | C23: 2,351 | E23: 13,980 | F23: -11,629 | G23: -83.2 | H23: =+C23-'[1]2025年3月'!C23 -> 237 | I23: =+E23-'[1]2025年3月'!E23 -> 517 | J23: -280 | K23: -54.2
A24: 3、罚没收入 | B24: 11,860 | C24: 4,207 | E24: 8,657 | F24: -4,450 | G24: -51.4 | H24: =+C24-'[1]2025年3月'!C24 -> 403 | I24: =+E24-'[1]2025年3月'!E24 -> 432 | J24: -29 | K24: -6.7
A25: 4、国有资源（资产）有偿使用收入 | B25: 54,365 | C25: 2,592 | E25: 2,791 | F25: -199 | G25: -7.1 | H25: =+C25-'[1]2025年3月'!C25 -> 1,260 | I25: =+E25-'[1]2025年3月'!E25 -> 1,955 | J25: -695 | K25: -35.5
A26: 5、政府住房基金收入 | B26: 300 | C26: 202 | E26: 264 | F26: -62 | G26: -23.5 | H26: =+C26-'[1]2025年3月'!C26 -> 80 | I26: =+E26-'[1]2025年3月'!E26 -> 105 | J26: -25 | K26: -23.8
A27: 6、捐赠收入 | B27: 10,660 | C27: 14,535 | E27: 377 | F27: 14,158 | G27: 3,755.4 | H27: =+C27-'[1]2025年3月'!C27 -> 58 | I27: =+E27-'[1]2025年3月'!E27 -> 32 | J27: 26 | K27: 81.3
A28: 7、其他收入 | B28: 3,460 | C28: 944 | E28: 1,332 | F28: -388 | G28: -29.1 | H28: =+C28-'[1]2025年3月'!C28 -> 76 | I28: =+E28-'[1]2025年3月'!E28 -> 50 | J28: 26 | K28: 52.0
A29: 8、国有资本经营收入 | B29: 0 | C29: 4 | E29: 0 | F29: 4 | H29: =+C29-'[1]2025年3月'!C29 -> 0 | I29: =+E29-'[1]2025年3月'!E29 -> 0 | J29: 0
A30: 一、一般公共预算收入 | B30: =B6+B21 -> 153,495 | C30: =C6+C21 -> 47,508 | D30: =C30/B30*100 -> 31.0 | E30: 46,309 | F30: 1,199 | G30: 2.6 | H30: 7,565 | I30: 7,627 | J30: -62 | K30: -0.8
A31: 二、政府性基金预算收入小计 | B31: 166,318 | C31: 2,933 | E31: 17,794 | F31: -14,861 | G31: -83.5 | H31: =+C31-'[1]2025年3月'!C31 -> 1,659 | I31: =+E31-'[1]2025年3月'!E31 -> 7,668 | J31: 645 | K31: 8.4
A32: 其中：国有土地使用权出让收入 | B32: 160,198 | C32: 1,780 | E32: 15,452 | F32: -13,672 | G32: -88.5 | H32: =+C32-'[1]2025年3月'!C32 -> 1,194 | I32: =+E32-'[1]2025年3月'!E32 -> 6,816 | J32: 422 | K32: 6.2
A33: 三、国有资本经营收入小计 | B33: 7,537 | C33: 500 | E33: 200 | F33: 300 | G33: 150.0 | H33: =+C33-'[1]2025年3月'!C33 -> 0 | I33: =+E33-'[1]2025年3月'!E33 -> 0 | J33: =H33-I33 -> 0
A34: 收入合计 | B34: =B30+B31+B33 -> 327,350 | C34: =C30+C31+C33 -> 50,941 | D34: =C34/B34*100 -> 15.6 | E34: 64,303 | F34: -13,362 | G34: -21 | H34: 9,224 | I34: 15,295 | J34: =H34-I34 -> -6,071 | K34: -40
L35: 陆丰市财政局国库股
